Department Family,Entity,Date of Payment,Expense Type,Expense Area,Supplier,Transaction Number,Amount in Sterling,Line description
ECGD,ECGD,9 May 22,Legal Recoverable Expense,LD,Kennedys Law LLP,         927,"40,018.69",Legal Services (recoverable)
ECGD,ECGD,10 May 22,Legal Recoverable Expense,LD,Kennedys Law LLP,         928,"25,740.98",Legal Services (recoverable)
ECGD,ECGD,10 May 22,Legal Recoverable Expense,LD,Kennedys Law LLP,         929,"39,262.81",Legal Services (recoverable)
ECGD,ECGD,10 May 22,Legal Recoverable Expense,LD,Kennedys Law LLP,         930,"107,456.43",Legal Services (recoverable)
ECGD,ECGD,10 May 22,Legal Recoverable Expense,LD,Kennedys Law LLP,         931,"28,253.83",Legal Services (recoverable)
ECGD,ECGD,9 May 22,Legal Recoverable Expense,LD,White & Case London,         933,"88,200.00",Legal Services (recoverable)
ECGD,ECGD,10 May 22,Legal Recoverable Expense,LD,White & Case London,         934,"88,200.00",Legal Services (recoverable)
ECGD,ECGD,10 May 22,Legal Recoverable Expense,LD,White & Case London,         935,"88,200.00",Legal Services (recoverable)
ECGD,ECGD,10 May 22,Legal Recoverable Expense,LD,White & Case London,         936,"88,200.00",Legal Services (recoverable)
ECGD,ECGD,17 May 22,Legal Recoverable Expense,LD,White & Case London,         937,"46,431.66",Legal Services (recoverable)
ECGD,ECGD,17 May 22,Legal Recoverable Expense,LD,White & Case London,         938,"46,431.66",Legal Services (recoverable)
ECGD,ECGD,17 May 22,Legal Recoverable Expense,LD,White & Case London,         939,"46,431.67",Legal Services (recoverable)
ECGD,ECGD,17 May 22,Legal Recoverable Expense,LD,White & Case London,         940,"46,431.67",Legal Services (recoverable)
ECGD,ECGD,31 May 22,Non Legal Recoverable,PMD,Aergo Capital Limited,         945,"44,994.03",Technical services (recoverable)
ECGD,ECGD,24 May 22,Marketing,OCCMC,Manning Gottlieb OMD,2770,"-27,138.42",Marketing & Communications
ECGD,ECGD,3 May 22,IT Software Licensing & Subscription,ID,Fidelity National Info Services,       82335,"89,579.67",IT Systems
ECGD,ECGD,17 May 22,Project Consultancy Costs,Change Board,Cogsworx Limited,       82348,"41,375.00",Project IT Services
ECGD,ECGD,9 May 22,Agency - Interim Managers,HRD,Alexander Mann Solutions,       82349,654.42,Interim Staff
ECGD,ECGD,9 May 22,Agency - Interim Managers,HRD,Alexander Mann Solutions,       82349,"1,680.16",Interim Staff
ECGD,ECGD,9 May 22,Agency - Interim Managers,HRD,Alexander Mann Solutions,       82349,"2,110.16",Interim Staff
ECGD,ECGD,9 May 22,Agency - Interim Managers,HRD,Alexander Mann Solutions,       82349,"2,110.16",Interim Staff
ECGD,ECGD,9 May 22,Agency - Interim Managers,HRD,Alexander Mann Solutions,       82349,"2,134.76",Interim Staff
ECGD,ECGD,9 May 22,Agency - Interim Managers,HRD,Alexander Mann Solutions,       82349,"2,181.40",Interim Staff
ECGD,ECGD,9 May 22,Agency - Interim Managers,HRD,Alexander Mann Solutions,       82349,"2,181.40",Interim Staff
ECGD,ECGD,9 May 22,Agency - Specialist Contractors,HRD,Alexander Mann Solutions,       82349,"1,539.84",Interim Staff
ECGD,ECGD,9 May 22,Agency - Specialist Contractors,HRD,Alexander Mann Solutions,       82349,"1,693.83",Interim Staff
ECGD,ECGD,9 May 22,Agency - Specialist Contractors,HRD,Alexander Mann Solutions,       82349,"1,770.81",Interim Staff
ECGD,ECGD,9 May 22,Agency - Specialist Contractors,HRD,Alexander Mann Solutions,       82349,"1,847.78",Interim Staff
ECGD,ECGD,9 May 22,Agency - Specialist Contractors,HRD,Alexander Mann Solutions,       82349,"1,847.78",Interim Staff
ECGD,ECGD,9 May 22,Agency - Specialist Contractors,HRD,Alexander Mann Solutions,       82349,"1,847.78",Interim Staff
ECGD,ECGD,9 May 22,Agency - Specialist Contractors,HRD,Alexander Mann Solutions,       82349,"1,847.78",Interim Staff
ECGD,ECGD,9 May 22,Agency - Specialist Contractors,HRD,Alexander Mann Solutions,       82349,"1,847.78",Interim Staff
ECGD,ECGD,9 May 22,Agency - Specialist Contractors,HRD,Alexander Mann Solutions,       82349,"1,847.78",Interim Staff
ECGD,ECGD,9 May 22,Agency - Specialist Contractors,HRD,Alexander Mann Solutions,       82349,"1,847.78",Interim Staff
ECGD,ECGD,9 May 22,Agency - Specialist Contractors,HRD,Alexander Mann Solutions,       82349,"1,847.78",Interim Staff
ECGD,ECGD,9 May 22,Agency - Specialist Contractors,HRD,Alexander Mann Solutions,       82349,"2,258.44",Interim Staff
ECGD,ECGD,9 May 22,Agency - Specialist Contractors,HRD,Alexander Mann Solutions,       82349,"2,310.20",Interim Staff
ECGD,ECGD,9 May 22,Agency - Specialist Contractors,HRD,Alexander Mann Solutions,       82349,"2,310.20",Interim Staff
ECGD,ECGD,9 May 22,Agency - Specialist Contractors,HRD,Alexander Mann Solutions,       82349,"2,361.08",Interim Staff
ECGD,ECGD,9 May 22,Agency - Specialist Contractors,HRD,Alexander Mann Solutions,       82349,"2,361.08",Interim Staff
ECGD,ECGD,9 May 22,Agency - Specialist Contractors,HRD,Alexander Mann Solutions,       82349,"2,361.08",Interim Staff
ECGD,ECGD,9 May 22,Agency - Specialist Contractors,HRD,Alexander Mann Solutions,       82349,"2,362.70",Interim Staff
ECGD,ECGD,9 May 22,Agency - Specialist Contractors,HRD,Alexander Mann Solutions,       82349,"2,823.05",Interim Staff
ECGD,ECGD,9 May 22,Agency - Specialist Contractors,HRD,Alexander Mann Solutions,       82349,"2,823.05",Interim Staff
ECGD,ECGD,9 May 22,Agency - Specialist Contractors,HRD,Alexander Mann Solutions,       82349,"2,875.08",Interim Staff
ECGD,ECGD,9 May 22,Agency - Specialist Contractors,HRD,Alexander Mann Solutions,       82349,"2,887.75",Interim Staff
ECGD,ECGD,9 May 22,Agency - Specialist Contractors,HRD,Alexander Mann Solutions,       82349,"3,483.27",Interim Staff
ECGD,ECGD,9 May 22,Agency - Specialist Contractors,HRD,Alexander Mann Solutions,       82349,"3,538.56",Interim Staff
ECGD,ECGD,9 May 22,Agency - Temporary Staff,HRD,Alexander Mann Solutions,       82349,377.80,Interim Staff
ECGD,ECGD,9 May 22,Agency - Temporary Staff,HRD,Alexander Mann Solutions,       82349,391.97,Interim Staff
ECGD,ECGD,9 May 22,Agency - Temporary Staff,HRD,Alexander Mann Solutions,       82349,553.61,Interim Staff
ECGD,ECGD,9 May 22,Agency - Temporary Staff,HRD,Alexander Mann Solutions,       82349,601.34,Interim Staff
ECGD,ECGD,9 May 22,Agency - Temporary Staff,HRD,Alexander Mann Solutions,       82349,626.29,Interim Staff
ECGD,ECGD,10 May 22,Overseas Export Managers,OCCMC,Foreign & Commonwealth Office,       82350,"37,874.53",Staff  Overseas
ECGD,ECGD,9 May 22,Marketing,OCCMC,Manning Gottlieb OMD,       82374,"70,551.81",Marketing & Communications
ECGD,ECGD,9 May 22,Marketing,OCCMC,Manning Gottlieb OMD,       82377,"44,855.31",Marketing & Communications
ECGD,ECGD,10 May 22,Consultancy,SPoCC,PA Consulting Services Ltd,       82393,"99,264.00",Consultancy Services
ECGD,ECGD,17 May 22,Marketing,OCCMC,Manning Gottlieb OMD,       82397,"92,034.85",Marketing & Communications
ECGD,ECGD,17 May 22,Agency - Interim Managers,HRD,Alexander Mann Solutions,       82398,"1,680.16",Interim Staff
ECGD,ECGD,17 May 22,Agency - Interim Managers,HRD,Alexander Mann Solutions,       82398,"2,110.16",Interim Staff
ECGD,ECGD,17 May 22,Agency - Interim Managers,HRD,Alexander Mann Solutions,       82398,"2,134.76",Interim Staff
ECGD,ECGD,17 May 22,Agency - Interim Managers,HRD,Alexander Mann Solutions,       82398,"2,637.70",Interim Staff
ECGD,ECGD,17 May 22,Agency - Specialist Contractors,HRD,Alexander Mann Solutions,       82398,577.55,Interim Staff
ECGD,ECGD,17 May 22,Agency - Specialist Contractors,HRD,Alexander Mann Solutions,       82398,"1,443.88",Interim Staff
ECGD,ECGD,17 May 22,Agency - Specialist Contractors,HRD,Alexander Mann Solutions,       82398,"1,539.84",Interim Staff
ECGD,ECGD,17 May 22,Agency - Specialist Contractors,HRD,Alexander Mann Solutions,       82398,"1,732.65",Interim Staff
ECGD,ECGD,17 May 22,Agency - Specialist Contractors,HRD,Alexander Mann Solutions,       82398,"1,890.16",Interim Staff
ECGD,ECGD,17 May 22,Agency - Specialist Contractors,HRD,Alexander Mann Solutions,       82398,"2,155.74",Interim Staff
ECGD,ECGD,17 May 22,Agency - Specialist Contractors,HRD,Alexander Mann Solutions,       82398,"2,155.74",Interim Staff
ECGD,ECGD,17 May 22,Agency - Specialist Contractors,HRD,Alexander Mann Solutions,       82398,"2,361.08",Interim Staff
ECGD,ECGD,17 May 22,Agency - Specialist Contractors,HRD,Alexander Mann Solutions,       82398,"2,361.08",Interim Staff
ECGD,ECGD,17 May 22,Agency - Specialist Contractors,HRD,Alexander Mann Solutions,       82398,"2,361.08",Interim Staff
ECGD,ECGD,17 May 22,Agency - Specialist Contractors,HRD,Alexander Mann Solutions,       82398,"2,362.70",Interim Staff
ECGD,ECGD,17 May 22,Agency - Specialist Contractors,HRD,Alexander Mann Solutions,       82398,"2,823.05",Interim Staff
ECGD,ECGD,17 May 22,Agency - Specialist Contractors,HRD,Alexander Mann Solutions,       82398,"2,823.05",Interim Staff
ECGD,ECGD,17 May 22,Agency - Specialist Contractors,HRD,Alexander Mann Solutions,       82398,"2,875.08",Interim Staff
ECGD,ECGD,17 May 22,Agency - Specialist Contractors,HRD,Alexander Mann Solutions,       82398,"3,980.88",Interim Staff
ECGD,ECGD,17 May 22,Agency - Temporary Staff,HRD,Alexander Mann Solutions,       82398,534.52,Interim Staff
ECGD,ECGD,17 May 22,Agency - Temporary Staff,HRD,Alexander Mann Solutions,       82398,539.98,Interim Staff
ECGD,ECGD,17 May 22,Agency - Temporary Staff,HRD,Alexander Mann Solutions,       82398,582.25,Interim Staff
ECGD,ECGD,17 May 22,Agency - Temporary Staff,HRD,Alexander Mann Solutions,       82398,647.52,Interim Staff
ECGD,ECGD,17 May 22,Agency - Temporary Staff,HRD,Alexander Mann Solutions,       82398,706.33,Interim Staff
ECGD,ECGD,17 May 22,Agency - Temporary Staff,HRD,Alexander Mann Solutions,       82398,715.88,Interim Staff
ECGD,ECGD,17 May 22,Marketing,OCCMC,Manning Gottlieb OMD,       82400,"28,945.44",Marketing & Communications
ECGD,ECGD,17 May 22,Overseas Export Managers,OCCMC,Green Park Interim & Executive Searc,       82403,"22,721.84",Staff  Overseas
ECGD,ECGD,17 May 22,Marketing,OCCMC,Manning Gottlieb OMD,       82405,"46,058.98",Marketing & Communications
ECGD,ECGD,17 May 22,IT Cloud and Hosting,ID,Bytes Software Services Ltd,       82408,"64,618.77",IT Systems
ECGD,ECGD,17 May 22,Agency - Interim Managers,HRD,Alexander Mann Solutions,       82415,"1,890.16",Interim Staff
ECGD,ECGD,17 May 22,Agency - Interim Managers,HRD,Alexander Mann Solutions,       82415,"1,890.16",Interim Staff
ECGD,ECGD,17 May 22,Agency - Interim Managers,HRD,Alexander Mann Solutions,       82415,"2,100.20",Interim Staff
ECGD,ECGD,17 May 22,Agency - Interim Managers,HRD,Alexander Mann Solutions,       82415,"2,401.61",Interim Staff
ECGD,ECGD,17 May 22,Agency - Interim Managers,HRD,Alexander Mann Solutions,       82415,"2,653.92",Interim Staff
ECGD,ECGD,17 May 22,Agency - Specialist Contractors,HRD,Alexander Mann Solutions,       82415,"1,155.10",Interim Staff
ECGD,ECGD,17 May 22,Agency - Specialist Contractors,HRD,Alexander Mann Solutions,       82415,"1,539.84",Interim Staff
ECGD,ECGD,17 May 22,Agency - Specialist Contractors,HRD,Alexander Mann Solutions,       82415,"2,362.70",Interim Staff
ECGD,ECGD,17 May 22,Agency - Specialist Contractors,HRD,Alexander Mann Solutions,       82415,"2,875.08",Interim Staff
ECGD,ECGD,17 May 22,Agency - Specialist Contractors,HRD,Alexander Mann Solutions,       82415,"2,887.75",Interim Staff
ECGD,ECGD,17 May 22,Agency - Specialist Contractors,HRD,Alexander Mann Solutions,       82415,"2,951.35",Interim Staff
ECGD,ECGD,17 May 22,Agency - Specialist Contractors,HRD,Alexander Mann Solutions,       82415,"2,951.35",Interim Staff
ECGD,ECGD,17 May 22,Agency - Specialist Contractors,HRD,Alexander Mann Solutions,       82415,"2,951.35",Interim Staff
ECGD,ECGD,17 May 22,Agency - Specialist Contractors,HRD,Alexander Mann Solutions,       82415,"4,976.10",Interim Staff
ECGD,ECGD,17 May 22,Agency - Temporary Staff,HRD,Alexander Mann Solutions,       82415,539.98,Interim Staff
ECGD,ECGD,17 May 22,Agency - Temporary Staff,HRD,Alexander Mann Solutions,       82415,670.32,Interim Staff
ECGD,ECGD,17 May 22,Online costs,Risk Approval Division,Fitch Solutions Ltd,       82417,"32,697.67",Country Risk assesments
ECGD,ECGD,17 May 22,IT Software Licensing & Subscription,ID,Bytes Software Services Ltd,       82426,"20,987.84",IT Systems
ECGD,ECGD,24 May 22,Project Consultancy Costs,Change Board,Agile Solutions (GB) Ltd,       82429,"27,260.00",Project IT Consultancy
ECGD,ECGD,24 May 22,Agency - Interim Managers,HRD,Alexander Mann Solutions,       82439,"1,890.16",Interim Staff
ECGD,ECGD,24 May 22,Agency - Interim Managers,HRD,Alexander Mann Solutions,       82439,"2,100.20",Interim Staff
ECGD,ECGD,24 May 22,Agency - Interim Managers,HRD,Alexander Mann Solutions,       82439,"2,362.70",Interim Staff
ECGD,ECGD,24 May 22,Agency - Interim Managers,HRD,Alexander Mann Solutions,       82439,"2,668.45",Interim Staff
ECGD,ECGD,24 May 22,Agency - Specialist Contractors,HRD,Alexander Mann Solutions,       82439,"1,334.52",Interim Staff
ECGD,ECGD,24 May 22,Agency - Specialist Contractors,HRD,Alexander Mann Solutions,       82439,"1,924.80",Interim Staff
ECGD,ECGD,24 May 22,Agency - Specialist Contractors,HRD,Alexander Mann Solutions,       82439,"2,361.08",Interim Staff
ECGD,ECGD,24 May 22,Agency - Specialist Contractors,HRD,Alexander Mann Solutions,       82439,"2,362.70",Interim Staff
ECGD,ECGD,24 May 22,Agency - Specialist Contractors,HRD,Alexander Mann Solutions,       82439,"2,823.05",Interim Staff
ECGD,ECGD,24 May 22,Agency - Specialist Contractors,HRD,Alexander Mann Solutions,       82439,"2,823.05",Interim Staff
ECGD,ECGD,24 May 22,Agency - Specialist Contractors,HRD,Alexander Mann Solutions,       82439,"2,875.08",Interim Staff
ECGD,ECGD,24 May 22,Agency - Specialist Contractors,HRD,Alexander Mann Solutions,       82439,"2,951.35",Interim Staff
ECGD,ECGD,24 May 22,Agency - Specialist Contractors,HRD,Alexander Mann Solutions,       82439,"2,951.35",Interim Staff
ECGD,ECGD,24 May 22,Agency - Specialist Contractors,HRD,Alexander Mann Solutions,       82439,"4,976.10",Interim Staff
ECGD,ECGD,24 May 22,Agency - Temporary Staff,HRD,Alexander Mann Solutions,       82439,668.15,Interim Staff
ECGD,ECGD,24 May 22,Agency - Temporary Staff,HRD,Alexander Mann Solutions,       82439,672.92,Interim Staff
ECGD,ECGD,24 May 22,Agency - Temporary Staff,HRD,Alexander Mann Solutions,       82439,708.38,Interim Staff
ECGD,ECGD,24 May 22,Agency - Temporary Staff,HRD,Alexander Mann Solutions,       82439,827.97,Interim Staff
ECGD,ECGD,24 May 22,IT Software Licensing & Subscription,ID,Bytes Software Services Ltd,       82441,"59,701.02",IT Systems
ECGD,ECGD,24 May 22,Marketing,OCCMC,Manning Gottlieb OMD,       82448,"22,446.14",Marketing & Communications
ECGD,ECGD,30 May 22,Agency - Interim Managers,HRD,Alexander Mann Solutions,       82458,"2,100.20",Interim Staff
ECGD,ECGD,30 May 22,Agency - Interim Managers,HRD,Alexander Mann Solutions,       82458,"2,362.70",Interim Staff
ECGD,ECGD,30 May 22,Agency - Interim Managers,HRD,Alexander Mann Solutions,       82458,"2,637.70",Interim Staff
ECGD,ECGD,30 May 22,Agency - Specialist Contractors,HRD,Alexander Mann Solutions,       82458,923.89,Interim Staff
ECGD,ECGD,30 May 22,Agency - Specialist Contractors,HRD,Alexander Mann Solutions,       82458,"1,847.78",Interim Staff
ECGD,ECGD,30 May 22,Agency - Specialist Contractors,HRD,Alexander Mann Solutions,       82458,"1,847.78",Interim Staff
ECGD,ECGD,30 May 22,Agency - Specialist Contractors,HRD,Alexander Mann Solutions,       82458,"1,847.78",Interim Staff
ECGD,ECGD,30 May 22,Agency - Specialist Contractors,HRD,Alexander Mann Solutions,       82458,"1,924.80",Interim Staff
ECGD,ECGD,30 May 22,Agency - Specialist Contractors,HRD,Alexander Mann Solutions,       82458,"2,362.70",Interim Staff
ECGD,ECGD,30 May 22,Agency - Specialist Contractors,HRD,Alexander Mann Solutions,       82458,"2,823.05",Interim Staff
ECGD,ECGD,30 May 22,Agency - Specialist Contractors,HRD,Alexander Mann Solutions,       82458,"2,887.75",Interim Staff
ECGD,ECGD,30 May 22,Agency - Specialist Contractors,HRD,Alexander Mann Solutions,       82458,"2,951.35",Interim Staff
ECGD,ECGD,30 May 22,Agency - Specialist Contractors,HRD,Alexander Mann Solutions,       82458,"2,951.35",Interim Staff
ECGD,ECGD,30 May 22,Agency - Specialist Contractors,HRD,Alexander Mann Solutions,       82458,"2,951.35",Interim Staff
ECGD,ECGD,30 May 22,Agency - Specialist Contractors,HRD,Alexander Mann Solutions,       82458,"3,336.30",Interim Staff
ECGD,ECGD,30 May 22,Agency - Specialist Contractors,HRD,Alexander Mann Solutions,       82458,"3,593.85",Interim Staff
ECGD,ECGD,30 May 22,Agency - Specialist Contractors,HRD,Alexander Mann Solutions,       82458,"4,146.75",Interim Staff
ECGD,ECGD,30 May 22,Agency - Temporary Staff,HRD,Alexander Mann Solutions,       82458,443.84,Interim Staff
ECGD,ECGD,30 May 22,Agency - Temporary Staff,HRD,Alexander Mann Solutions,       82458,591.79,Interim Staff
ECGD,ECGD,30 May 22,Agency - Temporary Staff,HRD,Alexander Mann Solutions,       82458,668.15,Interim Staff
ECGD,ECGD,30 May 22,Agency - Temporary Staff,HRD,Alexander Mann Solutions,       82458,687.24,Interim Staff
ECGD,ECGD,30 May 22,Agency - Temporary Staff,HRD,Alexander Mann Solutions,       82458,805.12,Interim Staff
ECGD,ECGD,30 May 22,Change Board Projects,Change Board,Price Waterhouse Coopers,       82472,"236,006.90",Project IT Consultancy
ECGD,ECGD,30 May 22,Agency - Secondees,HRD,Deloitte LLP,       82478,"206,400.00",Secondment Staff
ECGD,ECGD,31 May 22,Learning and Development,HRD,KPMG,       82479,"39,130.00",Learning & Development
,,,- 1 -,,,,,
